fUSD/lending_fUSD_20251217
["ID","MTS","AMOUNT","RATE_DAILY","PERIOD"]
[398893627,1765965375193,-228.47,0.00011791,2]
[398893646,1765965614435,3362.45,0.0001589,14]
[398893670,1765965891113,173.37,0.00011295,2]
[398893727,1765966232037,-228.47,0.00012197,2]
[398893729,1765966232046,-250.0,0.000124,2]
[398893731,1765966232056,-217.64200438,0.00012604,2]
[398893732,1765966232071,-10.82799562,0.00012604,2]
[398893733,1765966232080,-228.47,0.0001301,2]
[398893735,1765966232090,-173.37,0.00013177,2]
[398893737,1765966232099,-466.27389165,0.000134,2]
[398893739,1765966232110,-1531.77414892,0.000134,2]
[398893740,1765966232119,-250.0,0.00013417,2]
[398893741,1765966232128,-195.0,0.00013417,2]
[398893742,1765966232137,-228.47,0.00013417,2]
[398893743,1765966232146,-10.14063742,0.000135,2]
[398893744,1765966232157,-989.85936258,0.000135,2]
[398893745,1765966232167,-431.8840031,0.00013629,2]
[398893746,1765966232185,-536.89313858,0.00013629,2]
[398893747,1765966232196,-231.22285832,0.00013629,2]
[398893748,1765966232205,-477.13931133,0.0001363,2]
[398893749,1765966232217,-955.4655682,0.0001363,2]
[398893750,1765966232232,-625.6194234,0.0001363,2]
[398893751,1765966232243,-821.9387104,0.0001363,2]
[398893755,1765966238079,-195.71560467,0.0001363,2]
[398893756,1765966238094,-300.0,0.00013697,2]
[398893757,1765966238110,-300.0,0.00013697,2]
[398893758,1765966238125,-1200.0,0.00013698,2]
[398893761,1765966238140,-628.82,0.00013699,2]
[398893762,1765966238155,-1232.86,0.00013823,2]
[398893763,1765966238170,-8570.61,0.00013823,2]
[398893764,1765966238184,-228.47,0.00013823,2]
[398893765,1765966238199,-190.0,0.00013962,2]
[398893766,1765966238215,-1000.0,0.00014,2]
[398893767,1765966238229,-1217.0,0.00014004,2]
[398893769,1765966238243,-500.0,0.00014117,2]
[398893772,1765966238258,-362.0049776,0.00014117,2]
[398893774,1765966238272,-500.0,0.00014117,2]
[398893776,1765966238286,-500.0,0.00014117,2]
[398893777,1765966238300,-500.0,0.00014117,2]
[398893778,1765966238315,-500.0,0.00014117,2]
[398893779,1765966238330,-500.0,0.00014117,2]
[398893780,1765966238344,-305.21149721,0.00014117,2]
[398893781,1765966238358,-300.0,0.00014117,2]
[398893782,1765966238373,-150.0,0.00014117,2]
[398893783,1765966238386,-3432.13,0.00014119,2]
[398893784,1765966238400,-7675.04,0.00014119,2]
[398893785,1765966238415,-228.47,0.0001423,2]
[398893786,1765966238429,-899.0,0.00014349,2]
[398893787,1765966238443,-166.66,0.00014362,2]
[398893788,1765966238457,-9999.99,0.00014504,2]
[398893789,1765966238472,-427.63,0.00014504,2]
[398893790,1765966238486,-999.99,0.00014504,2]
[398893791,1765966238501,-398.39,0.00014504,2]
[398893792,1765966238515,-150.99,0.00014504,2]
[398893793,1765966238530,-1530.11,0.00014504,2]
[398893794,1765966238545,-206.17,0.00014507,2]
[398893795,1765966238559,-228.47,0.00014637,2]
[398893796,1765966238573,-436.08844988,0.00014768,2]
[398893797,1765966238587,-166.66,0.00014837,2]
[398893798,1765966238600,-500.0,0.00014855,2]
[398893799,1765966238614,-500.0,0.00014855,2]
[398893800,1765966238628,-500.0,0.00014855,2]
[398893801,1765966238642,-500.0,0.00014855,2]
[398893802,1765966238655,-500.0,0.00014855,2]
[398893803,1765966238669,-500.0,0.00014855,2]
[398893804,1765966238682,-500.0,0.00014855,2]
[398893805,1765966238695,-500.0,0.00014855,2]
[398893806,1765966238709,-200.0,0.00014855,2]
[398893807,1765966238723,-151.0,0.00014855,2]
[398893808,1765966238735,-200.0,0.00014855,2]
[398893809,1765966238748,-151.0,0.00014855,2]
[398893810,1765966238761,-151.0,0.00014855,2]
[398893811,1765966238773,-151.0,0.00014855,2]
[398893812,1765966238786,-151.0,0.00014855,2]
[398893813,1765966238799,-151.0,0.00014855,2]
[398893814,1765966238811,-151.0,0.00014855,2]
[398893815,1765966238824,-151.0,0.00014855,2]
[398893816,1765966238837,-151.0,0.00014855,2]
[398893817,1765966238853,-151.0,0.00014855,2]
[398893818,1765966238865,-151.0,0.00014855,2]
[398893819,1765966238879,-3351.66506838,0.00014864,2]
[398893820,1765966238892,-955.25,0.00014879,2]
[398893821,1765966238906,-200.0,0.00014879,2]
[398893822,1765966238918,-1600.0,0.00014879,2]
[398893823,1765966238931,-1680.0,0.00014992,2]
[398893824,1765966238944,-420.0,0.0001501,2]
[398893825,1765966238957,-420.0,0.0001501,2]
[398893826,1765966238970,-228.47,0.00015043,2]
[398893827,1765966238983,-173.37,0.0001506,2]
[398893828,1765966238996,-9053.55717366,0.00015205,2]
[398893829,1765966239009,-500.0,0.00015205,2]
[398893830,1765966239021,-250.0,0.00015211,2]
[398893831,1765966239035,-6540.47178485,0.00015211,2]
[398893832,1765966239047,-255.0,0.00015232,2]
[398893833,1765966239061,-2590.98,0.00015284,2]
[398893834,1765966239073,-2590.98,0.00015284,2]
[398893835,1765966239086,-405.07474665,0.00015293,2]
[398893836,1765966239099,-196.4788499,0.00015293,2]
[398893837,1765966239112,-325877.44021721,0.00015294,2]
[398893838,1765966239125,-166.66,0.00015311,2]
[398893839,1765966239138,-500.0,0.00015403,2]
[398893840,1765966239650,-200.0,0.00015403,2]
[398893841,1765966239864,-200.0,0.00015403,2]
[398893842,1765966239903,-500.0,0.00015414,2]
[398893843,1765966239924,-500.0,0.00015414,2]
[398893844,1765966239933,-468.97910059,0.00015414,2]
[398893845,1765966239942,-500.0,0.00015414,2]
[398893846,1765966239951,-500.0,0.00015414,2]
[398893847,1765966239961,-500.0,0.00015414,2]
[398893848,1765966239970,-500.0,0.00015414,2]
[398893849,1765966239979,-500.0,0.00015414,2]
[398893850,1765966239988,-503.9543882,0.00015414,2]
[398893851,1765966239998,-500.0,0.00015414,2]
[398893852,1765966240007,-500.0,0.00015414,2]
[398893853,1765966240016,-514.23721699,0.00015414,2]
[398893854,1765966240025,-500.0,0.00015414,2]
[398893855,1765966240035,-228.47,0.0001545,2]
[398893856,1765966240044,-422.87348386,0.00015464,2]
[398893857,1765966240053,-1793.98,0.00015503,2]
[398893858,1765966240062,-83.51999942,0.00015514,2]
[398893859,1765966240071,-352.71314952,0.00015514,2]
[398893860,1765966240080,-500.0,0.00015514,2]
[398893861,1765966240089,-500.0,0.00015514,2]
[398893862,1765966240099,-158.05,0.00015526,2]
[398893863,1765966240108,-3928.89213815,0.00015568,2]
[398893864,1765966240118,-9053.55717361,0.00015616,2]
[398893865,1765966240127,-6540.47178478,0.00015621,2]
[398893866,1765966240135,-3240.0,0.00015651,2]
[398893867,1765966240144,-1852.42,0.00015651,2]
[398893868,1765966240153,-153.0,0.00015697,2]
[398893869,1765966240162,-2590.98,0.00015761,2]
[398893870,1765966240171,-5669.9694124,0.00015771,2]
[398893871,1765966240180,-166.66,0.00015785,2]
[398893872,1765966240189,-721.0,0.0001589,2]
[398893873,1765966240199,-721.0,0.0001589,2]
[398893874,1765966240208,-721.0,0.0001589,2]
[398893875,1765966240218,-874.97459446,0.000159,2]
[398893876,1765966240228,-6957.06,0.00015915,2]
[398893877,1765966240237,-9053.55717361,0.00016026,2]
[398893878,1765966240247,-6540.47178478,0.00016031,2]
[398893879,1765966240257,-9372.0,0.00016104,2]
[398893880,1765966240268,-9999.99,0.00016116,2]
[398893881,1765966240278,-658.77,0.00016137,2]
[398893882,1765966240288,-658.77,0.00016137,2]
[398893883,1765966240297,-658.77,0.00016137,2]
[398893884,1765966240307,-166.66,0.00016259,2]
[398893885,1765966240316,-2590.98,0.00016428,2]
[398893886,1765966240326,-500.0,0.00016429,2]
[398893887,1765966240335,-433.0,0.00016432,2]
[398893888,1765966240344,-9053.55717361,0.00016437,2]
[398893889,1765966240353,-4048.56264106,0.00016438,2]
[398893890,1765966240363,-898.08433789,0.00016438,2]
[398893891,1765966240371,-279.50214594,0.00016438,2]
[398893892,1765966240381,-1000.0,0.00016438,2]
[398893893,1765966240390,-961.3562878,0.00016438,2]
[398893894,1765966240399,-300.0,0.00016438,2]
[398893895,1765966240409,-300.0,0.00016438,2]
[398893896,1765966240419,-300.0,0.00016438,2]
[398893897,1765966240428,-300.0,0.00016438,2]
[398893898,1765966240437,-300.0,0.00016438,2]
[398893899,1765966240447,-300.0,0.00016438,2]
[398893900,1765966240457,-300.0,0.00016438,2]
[398893901,1765966240466,-300.0,0.00016438,2]
[398893902,1765966240475,-300.0,0.00016438,2]
[398893903,1765966240484,-300.0,0.00016438,2]
[398893904,1765966240494,-300.0,0.00016438,2]
[398893905,1765966240503,-300.0,0.00016438,2]
[398893906,1765966240512,-300.0,0.00016438,2]
[398893907,1765966240520,-300.0,0.00016438,2]
[398893908,1765966240530,-300.0,0.00016438,2]
[398893909,1765966240539,-300.0,0.00016438,2]
[398893910,1765966240548,-300.0,0.00016438,2]
[398893911,1765966240557,-300.0,0.00016438,2]
[398893913,1765966240566,-300.0,0.00016438,2]
[398893915,1765966240575,-300.0,0.00016438,2]
[398893916,1765966240584,-300.0,0.00016438,2]
[398893918,1765966240593,-300.0,0.00016438,2]
[398893920,1765966240602,-197.26900433,0.00016438,2]
[398893922,1765966240611,-730.23,0.00016438,2]
[398893925,1765966240621,-789.43311406,0.00016438,2]
[398893926,1765966240630,-209.93991852,0.00016438,2]
[398893929,1765966240640,-500.0,0.00016438,2]
[398893931,1765966240649,-500.0,0.00016438,2]
[398893932,1765966240659,-500.0,0.00016438,2]
[398893934,1765966240668,-500.0,0.00016438,2]
[398893937,1765966240678,-500.0,0.00016438,2]
[398893939,1765966240687,-500.0,0.00016438,2]
[398893940,1765966240696,-500.0,0.00016438,2]
[398893942,1765966240705,-500.0,0.00016438,2]
[398893945,1765966240716,-500.0,0.00016438,2]
[398893946,1765966240725,-500.0,0.00016438,2]
[398893949,1765966240734,-500.0,0.00016438,2]
[398893950,1765966240743,-500.0,0.00016438,2]
[398893951,1765966240752,-500.0,0.00016438,2]
[398893952,1765966240761,-500.0,0.00016438,2]
[398893953,1765966240770,-500.0,0.00016438,2]
[398893954,1765966240779,-500.0,0.00016438,2]
[398893955,1765966240788,-500.0,0.00016438,2]
[398893956,1765966240797,-500.0,0.00016438,2]
[398893957,1765966240805,-500.0,0.00016438,2]
[398893958,1765966240814,-500.0,0.00016438,2]
[398893959,1765966240823,-500.0,0.00016438,2]
[398893960,1765966240832,-500.0,0.00016438,2]
[398893961,1765966240843,-500.0,0.00016438,2]
[398893962,1765966240852,-500.0,0.00016438,2]
[398893963,1765966240862,-500.0,0.00016438,2]
[398893964,1765966240870,-500.0,0.00016438,2]
[398893965,1765966240879,-500.0,0.00016438,2]
[398893966,1765966240889,-500.0,0.00016438,2]
[398893967,1765966240899,-500.0,0.00016438,2]
[398893968,1765966240908,-500.0,0.00016438,2]
[398893969,1765966240920,-500.0,0.00016438,2]
[398893970,1765966240929,-500.0,0.00016438,2]
[398893971,1765966240938,-500.0,0.00016438,2]
[398893972,1765966240947,-500.0,0.00016438,2]
[398893973,1765966240957,-500.0,0.00016438,2]
[398893974,1765966240966,-500.0,0.00016438,2]
[398893975,1765966240975,-500.0,0.00016438,2]
[398893976,1765966240984,-500.0,0.00016438,2]
[398893977,1765966240993,-500.0,0.00016438,2]
[398893978,1765966241002,-500.0,0.00016438,2]
[398893979,1765966241011,-500.0,0.00016438,2]
[398893980,1765966241020,-500.0,0.00016438,2]
[398893981,1765966241029,-500.0,0.00016438,2]
[398893982,1765966241041,-500.0,0.00016438,2]
[398893983,1765966241050,-500.0,0.00016438,2]
[398893984,1765966241059,-500.0,0.00016438,2]
[398893985,1765966241069,-500.0,0.00016438,2]
[398893986,1765966241078,-500.0,0.00016438,2]
[398893987,1765966241087,-500.0,0.00016438,2]
[398893988,1765966241096,-500.0,0.00016438,2]
[398893989,1765966241105,-500.0,0.00016438,2]
[398893990,1765966241115,-500.0,0.00016438,2]
[398893991,1765966241124,-500.0,0.00016438,2]
[398893992,1765966241133,-500.0,0.00016438,2]
[398893993,1765966241143,-500.0,0.00016438,2]
[398893994,1765966241152,-500.0,0.00016438,2]
[398893995,1765966241161,-500.0,0.00016438,2]
[398893996,1765966241170,-500.0,0.00016438,2]
[398893997,1765966241179,-500.0,0.00016438,2]
[398893998,1765966241189,-500.0,0.00016438,2]
[398893999,1765966241198,-500.0,0.00016438,2]
[398894000,1765966241209,-600.0,0.00016438,2]
[398894001,1765966241218,-715.0,0.00016438,2]
[398894002,1765966241227,-715.0,0.00016438,2]
[398894003,1765966241236,-801.71075194,0.00016438,2]
[398894004,1765966241245,-6540.47178478,0.00016441,2]
[398894005,1765966241254,-587.0,0.0001645,2]
[398894006,1765966241263,-587.0,0.0001645,2]
[398894007,1765966241272,-2351.0,0.00016491,2]
[398894008,1765966241281,-481.46730423,0.00016502,2]
[398894009,1765966241292,-460.06,0.00016548,2]
[398894010,1765966241301,-320.6,0.00016548,2]
[398894011,1765966241311,-158.05,0.00016635,2]
[398894012,1765966241320,-730.23,0.00016712,2]
[398894013,1765966241329,-164.0,0.00016712,2]
[398894014,1765966241339,-166.66,0.00016733,2]
[398894015,1765966241348,-1600.0,0.00016739,2]
[398894016,1765966241357,-189.65666295,0.00016775,2]
[398894017,1765966241367,-3596.28922654,0.0001679,2]
[398894018,1765966241376,-1000.0,0.000168,2]
[398894019,1765966241387,-2590.98,0.00016837,2]
[398894020,1765966241396,-9053.55717361,0.00016847,2]
[398894021,1765966241405,-6540.47178478,0.00016851,2]
[398894022,1765966241414,-155.63690198,0.00016898,2]
[398894023,1765966241425,-1041.55692113,0.000169,2]
[398894024,1765966241434,-173.37,0.00016942,2]
[398894025,1765966241444,-500.0,0.00016973,2]
[398894026,1765966241454,-502.93181499,0.00016973,2]
[398894027,1765966241463,-500.0,0.00016973,2]
[398894028,1765966241474,-500.0,0.00016973,2]
[398894029,1765966241483,-500.0,0.00016973,2]
[398894030,1765966241492,-500.0,0.00016973,2]
[398894031,1765966241502,-500.0,0.00016973,2]
[398894032,1765966241511,-500.0,0.00016973,2]
[398894033,1765966241519,-201.55783771,0.00016973,2]
[398894034,1765966241528,-500.0,0.00016973,2]
[398894035,1765966241538,-500.0,0.00016973,2]
[398894036,1765966241547,-500.0,0.00016973,2]
[398894037,1765966241558,-500.71124086,0.00016973,2]
[398894038,1765966241567,-476.4698319,0.00016973,2]
[398894039,1765966241576,-500.0,0.00016973,2]
[398894040,1765966241585,-341.41992772,0.00016973,2]
[398894041,1765966241594,-500.0,0.00016973,2]
[398894042,1765966241603,-276.35412541,0.00016973,2]
[398894043,1765966241612,-500.0,0.00016973,2]
[398894044,1765966241621,-508.13351666,0.00016983,2]
[398894045,1765966241630,-730.23,0.00016986,2]
[398894046,1765966241639,-619.0,0.00016986,2]
[398894047,1765966241648,-600.0,0.00016986,2]
[398894048,1765966241657,-487.58127426,0.0001699,2]
[398894049,1765966241666,-151.0,0.00016995,2]
[398894050,1765966241675,-500.0,0.00016997,2]
[398894051,1765966241684,-3091.0928669,0.00016998,2]
[398894052,1765966241692,-91651.5304052,0.00016998,2]
[398894053,1765966241701,-150.0,0.00016998,2]
[398894054,1765966241711,-75109.6753078,0.00016998,2]
[398894055,1765966241720,-1001.8138657,0.00016998,2]
[398894056,1765966241729,-6017.3835372,0.00016998,2]
[398894057,1765966241739,-2254.0811977,0.00016998,2]
[398894058,1765966241748,-500.0,0.00016999,2]
[398894059,1765966241757,-500.0,0.00016999,2]
[398894060,1765966241767,-438208.32025912,0.00017,2]
[398894061,1765966241776,-250.0,0.00017,2]
[398894062,1765966241786,-2000.0,0.00017,2]
[398894063,1765966241795,-1006.0,0.00017,2]
[398894064,1765966241803,-438.0,0.00017018,2]
[398894065,1765966241813,-438.0,0.00017018,2]
[398894066,1765966241822,-438.0,0.00017018,2]
[398894067,1765966241831,-438.0,0.00017018,2]
[398894068,1765966241842,-438.0,0.00017018,2]
[398894069,1765966241856,-438.0,0.00017018,2]
[398894070,1765966241866,-438.0,0.00017018,2]
[398894071,1765966241876,-438.0,0.00017018,2]
[398894072,1765966241884,-438.0,0.00017018,2]
[398894073,1765966241893,-438.0,0.00017018,2]
[398894074,1765966241903,-438.0,0.00017018,2]
[398894075,1765966241911,-438.0,0.00017018,2]
[398894076,1765966241921,-438.0,0.00017018,2]
[398894077,1765966241930,-438.0,0.00017018,2]
[398894078,1765966241939,-438.0,0.00017018,2]
[398894079,1765966241947,-438.0,0.00017018,2]
[398894080,1765966241957,-438.0,0.00017018,2]
[398894081,1765966241966,-438.0,0.00017018,2]
[398894082,1765966241975,-438.0,0.00017018,2]
[398894083,1765966241984,-438.0,0.00017018,2]
[398894084,1765966241992,-438.0,0.00017018,2]
[398894085,1765966242002,-438.0,0.00017018,2]
[398894086,1765966242010,-438.0,0.00017018,2]
[398894087,1765966242020,-438.0,0.00017018,2]
[398894088,1765966242029,-438.0,0.00017018,2]
[398894089,1765966242037,-438.0,0.00017018,2]
[398894090,1765966242047,-438.0,0.00017018,2]
[398894091,1765966242055,-438.0,0.00017018,2]
[398894092,1765966242065,-438.0,0.00017018,2]
[398894093,1765966242074,-438.0,0.00017018,2]
[398894094,1765966242083,-438.0,0.00017018,2]
[398894095,1765966242091,-438.0,0.00017018,2]
[398894096,1765966242100,-438.0,0.00017018,2]
[398894097,1765966242109,-438.0,0.00017018,2]
[398894098,1765966242118,-438.0,0.00017018,2]
[398894099,1765966242127,-438.0,0.00017018,2]
[398894100,1765966242136,-438.0,0.00017018,2]
[398894101,1765966242144,-438.0,0.00017018,2]
[398894102,1765966242153,-438.0,0.00017018,2]
[398894103,1765966242162,-438.0,0.00017018,2]
[398894104,1765966242171,-438.0,0.00017018,2]
[398894105,1765966242180,-438.0,0.00017018,2]
[398894106,1765966242190,-438.0,0.00017018,2]
[398894107,1765966242199,-438.0,0.00017018,2]
[398894108,1765966242208,-438.0,0.00017018,2]
[398894109,1765966242217,-438.0,0.00017018,2]
[398894110,1765966242227,-438.0,0.00017018,2]
[398894111,1765966242236,-438.0,0.00017018,2]
[398894112,1765966242245,-438.0,0.00017018,2]
[398894113,1765966242254,-438.0,0.00017018,2]
[398894114,1765966242263,-438.0,0.00017018,2]
[398894115,1765966242272,-438.0,0.00017018,2]
[398894116,1765966242281,-438.0,0.00017018,2]
[398894117,1765966242291,-438.0,0.00017018,2]
[398894118,1765966242299,-438.0,0.00017018,2]
[398894119,1765966242309,-438.0,0.00017018,2]
[398894120,1765966242318,-438.0,0.00017018,2]
[398894121,1765966242327,-438.0,0.00017018,2]
[398894122,1765966242336,-438.0,0.00017018,2]
[398894123,1765966242345,-438.0,0.00017018,2]
[398894124,1765966242356,-438.0,0.00017018,2]
[398894125,1765966242365,-438.0,0.00017018,2]
[398894126,1765966242375,-438.0,0.00017018,2]
[398894127,1765966242384,-438.0,0.00017018,2]
[398894128,1765966242393,-438.0,0.00017018,2]
[398894129,1765966242402,-438.0,0.00017018,2]
[398894130,1765966242412,-438.0,0.00017018,2]
[398894131,1765966242421,-438.0,0.00017018,2]
[398894132,1765966242430,-438.0,0.00017018,2]
[398894133,1765966242439,-438.0,0.00017018,2]
[398894134,1765966242448,-471.0,0.00017018,2]
[398894135,1765966242458,-471.0,0.00017018,2]
[398894136,1765966242467,-471.0,0.00017018,2]
[398894137,1765966242476,-471.0,0.00017018,2]
[398894138,1765966242485,-471.0,0.00017018,2]
[398894139,1765966242494,-471.0,0.00017018,2]
[398894140,1765966242503,-471.0,0.00017018,2]
[398894141,1765966242513,-471.0,0.00017018,2]
[398894142,1765966242524,-471.0,0.00017018,2]
[398894143,1765966242533,-471.0,0.00017018,2]
[398894144,1765966242542,-471.0,0.00017018,2]
[398894145,1765966242551,-471.0,0.00017018,2]
[398894146,1765966242562,-471.0,0.00017018,2]
[398894147,1765966242577,-471.0,0.00017018,2]
[398894148,1765966242587,-471.0,0.00017018,2]
[398894149,1765966242596,-471.0,0.00017018,2]
[398894150,1765966242605,-471.0,0.00017018,2]
[398894151,1765966242614,-471.0,0.00017018,2]
[398894152,1765966242623,-471.0,0.00017018,2]
[398894153,1765966242631,-471.0,0.00017018,2]
[398894154,1765966242640,-471.0,0.00017018,2]
[398894155,1765966242649,-471.0,0.00017018,2]
[398894156,1765966242658,-471.0,0.00017018,2]
[398894157,1765966242667,-471.0,0.00017018,2]
[398894158,1765966242676,-471.0,0.00017018,2]
[398894159,1765966242685,-471.0,0.00017018,2]
[398894160,1765966242694,-471.0,0.00017018,2]
[398894161,1765966242703,-471.0,0.00017018,2]
[398894162,1765966242712,-471.0,0.00017018,2]
[398894163,1765966242722,-471.0,0.00017018,2]
[398894164,1765966242731,-471.0,0.00017018,2]
[398894165,1765966242740,-471.0,0.00017018,2]
[398894166,1765966242750,-471.0,0.00017018,2]
[398894167,1765966242759,-471.0,0.00017018,2]
[398894168,1765966242768,-471.0,0.00017018,2]
[398894169,1765966242777,-471.0,0.00017018,2]
[398894170,1765966242787,-471.0,0.00017018,2]
[398894171,1765966242796,-471.0,0.00017018,2]
[398894172,1765966242807,-471.0,0.00017018,2]
[398894173,1765966242816,-471.0,0.00017018,2]
[398894174,1765966242826,-471.0,0.00017018,2]
[398894175,1765966242837,-471.0,0.00017018,2]
[398894176,1765966242851,-471.0,0.00017018,2]
[398894177,1765966242860,-471.0,0.00017018,2]
[398894178,1765966242870,-471.0,0.00017018,2]
[398894179,1765966242882,-471.0,0.00017018,2]
[398894180,1765966242892,-471.0,0.00017018,2]
[398894182,1765966242901,-471.0,0.00017018,2]
[398894184,1765966242911,-471.0,0.00017018,2]
[398894186,1765966242925,-471.0,0.00017018,2]
[398894188,1765966242934,-471.0,0.00017018,2]
[398894190,1765966242943,-471.0,0.00017018,2]
[398894192,1765966242952,-471.0,0.00017018,2]
[398894194,1765966242962,-471.0,0.00017018,2]
[398894196,1765966242971,-471.0,0.00017018,2]
[398894198,1765966242980,-471.0,0.00017018,2]
[398894199,1765966242990,-471.0,0.00017018,2]
[398894200,1765966243000,-471.0,0.00017018,2]
[398894201,1765966243009,-471.0,0.00017018,2]
[398894202,1765966243019,-471.0,0.00017018,2]
[398894203,1765966243028,-471.0,0.00017018,2]
[398894204,1765966243038,-471.0,0.00017018,2]
[398894205,1765966243047,-471.0,0.00017018,2]
[398894206,1765966243057,-471.0,0.00017018,2]
[398894207,1765966243066,-471.0,0.00017018,2]
[398894208,1765966243075,-471.0,0.00017018,2]
[398894209,1765966243332,-471.0,0.00017018,2]
[398894211,1765966243350,-471.0,0.00017018,2]
[398894213,1765966243360,-471.0,0.00017018,2]
[398894215,1765966243370,-471.0,0.00017018,2]
[398894217,1765966243380,-471.0,0.00017018,2]
[398894219,1765966243389,-471.0,0.00017018,2]
[398894220,1765966243399,-471.0,0.00017018,2]
[398894221,1765966243409,-471.0,0.00017018,2]
[398894222,1765966243418,-471.0,0.00017018,2]
[398894223,1765966243428,-471.0,0.00017018,2]
[398894224,1765966243437,-471.0,0.00017018,2]
[398894225,1765966243447,-471.0,0.00017018,2]
[398894226,1765966243456,-471.0,0.00017018,2]
[398894227,1765966243466,-471.0,0.00017018,2]
[398894228,1765966243475,-471.0,0.00017018,2]
[398894229,1765966243485,-471.0,0.00017018,2]
[398894230,1765966243495,-471.0,0.00017018,2]
[398894231,1765966243504,-471.0,0.00017018,2]
[398894232,1765966243514,-471.0,0.00017018,2]
[398894233,1765966243524,-471.0,0.00017018,2]
[398894234,1765966243533,-9865.92,0.0001708,2]
[398894235,1765966243543,-1000.0,0.00017088,2]
[398894236,1765966243553,-150.0,0.00017088,2]
[398894237,1765966243562,-150.0,0.00017088,2]
[398894238,1765966243572,-150.0,0.00017088,2]
[398894239,1765966243582,-150.0,0.00017088,2]
[398894240,1765966243592,-221.28365954,0.00017088,2]
[398894241,1765966243602,-150.0,0.00017088,2]
[398894242,1765966243612,-150.0,0.00017088,2]
[398894243,1765966243622,-154.80455544,0.00017088,2]
[398894244,1765966243632,-156.03264286,0.00017088,2]
[398894245,1765966243641,-150.0,0.00017088,2]
[398894246,1765966243651,-220.74077702,0.00017115,2]
[398894247,1765966243660,-620.0,0.00017115,2]
[398894248,1765966243670,-553.64373807,0.00017115,2]
[398894249,1765966243680,-2112.0,0.00017115,2]
[398894250,1765966243689,-675.30233005,0.00017115,2]
[398894251,1765966243699,-1000.0,0.00017115,2]
[398894252,1765966243707,-947.35912125,0.00017115,2]
[398894253,1765966243716,-300.0,0.00017115,2]
[398894254,1765966243725,-151.0,0.00017119,2]
[398894255,1765966243734,-911.0,0.00017122,2]
[398894256,1765966243743,-1197.0,0.00017122,2]
[398894257,1765966243753,-2427.0,0.00017122,2]
[398894258,1765966243762,-4799.0,0.00017122,2]
[398894259,1765966243771,-563.0,0.00017122,2]
[398894260,1765966243781,-1041.55692108,0.00017233,2]
[398894261,1765966243790,-547.0,0.00017245,2]
[398894262,1765966243799,-9053.55717361,0.00017258,2]
[398894263,1765966243808,-730.23,0.0001726,2]
[398894264,1765966243819,-619.0,0.0001726,3]
[398894265,1765966243832,-6540.47178478,0.0001726,2]
[398894266,1765966243844,-547.0,0.00017288,2]
[398894267,1765966243855,-500.0,0.00017318,2]
[398894268,1765966243864,-232.0,0.00017365,2]
[398894269,1765966243872,-547.0,0.00017389,2]
[398894270,1765966243882,-183.0,0.000174,2]
[398894271,1765966243891,-150.96547858,0.0001742,2]